fUSD/lending_fUSD_20260505
["ID","MTS","AMOUNT","RATE_DAILY","PERIOD"]
[421585716,1777929032000,-618.87183927,0.00014999,2]
[421585715,1777929032000,-618.87183927,0.00014999,2]
[421585731,1777929032000,-1357.73109663,0.00014999,2]
[421585724,1777929032000,-1357.73109663,0.00014999,2]
[421585708,1777929032000,-618.87183927,0.00014999,2]
[421585721,1777929032000,-618.87183927,0.00014999,2]
[421585732,1777929032000,-1357.73109663,0.00014999,2]
[421585722,1777929032000,-1357.73109663,0.00014999,2]
[421585730,1777929032000,-1357.73109663,0.00014999,2]
[421585725,1777929032000,-1357.73109663,0.00014999,2]
[421585727,1777929032000,-1357.73109663,0.00014999,2]
[421585723,1777929032000,-1357.73109663,0.00014999,2]
[421585728,1777929032000,-1357.73109663,0.00014999,2]
[421585729,1777929032000,-1357.73109663,0.00014999,2]
[421585733,1777929032000,-1357.73109663,0.00014999,2]
[421585735,1777929032000,-1357.73109663,0.00014999,2]
[421585737,1777929032000,-1357.73109663,0.00014999,2]
[421585734,1777929032000,-1357.73109663,0.00014999,2]
[421585675,1777929032000,-618.87183927,0.00014999,2]
[421585726,1777929032000,-1357.73109663,0.00014999,2]
[421585706,1777929032000,-618.87183927,0.00014999,2]
[421585711,1777929032000,-618.87183927,0.00014999,2]
[421585705,1777929032000,-618.87183927,0.00014999,2]
[421585676,1777929032000,-618.87183927,0.00014999,2]
[421585673,1777929032000,-618.87183927,0.00014999,2]
[421585678,1777929032000,-618.87183927,0.00014999,2]
[421585674,1777929032000,-618.87183927,0.00014999,2]
[421585681,1777929032000,-618.87183927,0.00014999,2]
[421585682,1777929032000,-618.87183927,0.00014999,2]
[421585683,1777929032000,-618.87183927,0.00014999,2]
[421585684,1777929032000,-618.87183927,0.00014999,2]
[421585686,1777929032000,-618.87183927,0.00014999,2]
[421585687,1777929032000,-618.87183927,0.00014999,2]
[421585685,1777929032000,-618.87183927,0.00014999,2]
[421585704,1777929032000,-618.87183927,0.00014999,2]
[421585694,1777929032000,-618.87183927,0.00014999,2]
[421585688,1777929032000,-618.87183927,0.00014999,2]
[421585689,1777929032000,-618.87183927,0.00014999,2]
[421585690,1777929032000,-618.87183927,0.00014999,2]
[421585691,1777929032000,-618.87183927,0.00014999,2]
[421585703,1777929032000,-618.87183927,0.00014999,2]
[421585702,1777929032000,-618.87183927,0.00014999,2]
[421585693,1777929032000,-618.87183927,0.00014999,2]
[421585736,1777929032000,-1357.73109663,0.00014999,2]
[421585700,1777929032000,-618.87183927,0.00014999,2]
[421585698,1777929032000,-618.87183927,0.00014999,2]
[421585699,1777929032000,-618.87183927,0.00014999,2]
[421585707,1777929032000,-618.87183927,0.00014999,2]
[421585697,1777929032000,-618.87183927,0.00014999,2]
[421585696,1777929032000,-618.87183927,0.00014999,2]
[421585695,1777929032000,-618.87183927,0.00014999,2]
[421585692,1777929032000,-618.87183927,0.00014999,2]
[421585701,1777929032000,-618.87183927,0.00014999,2]
[421585744,1777929033000,-1357.73109663,0.00014999,2]
[421585743,1777929033000,-1357.73109663,0.00014999,2]
[421585740,1777929033000,-1357.73109663,0.00014999,2]
[421585745,1777929033000,-1357.73109663,0.00014999,2]
[421585741,1777929033000,-1357.73109663,0.00014999,2]
[421585738,1777929033000,-1357.73109663,0.00014999,2]
[421585742,1777929033000,-1357.73109663,0.00014999,2]
[421585739,1777929033000,-1357.73109663,0.00014999,2]
[421585747,1777929033000,-1357.73109663,0.00014999,2]
[421585757,1777929033000,-59249.79978191,0.00015,2]
[421585746,1777929033000,-1357.73109663,0.00014999,2]
[421585755,1777929033000,-1357.73109663,0.00014999,2]
[421585754,1777929033000,-1357.73109663,0.00014999,2]
[421585756,1777929033000,-5880.26841391,0.00015,2]
[421585748,1777929033000,-1357.73109663,0.00014999,2]
[421585749,1777929033000,-1357.73109663,0.00014999,2]
[421585752,1777929033000,-1357.73109663,0.00014999,2]
[421585753,1777929033000,-1357.73109663,0.00014999,2]
[421585750,1777929033000,-1357.73109663,0.00014999,2]
[421585751,1777929033000,-1357.73109663,0.00014999,2]
[421585768,1777929037000,-393.89675843,0.00015,2]
[421585769,1777929037000,-1057.47540344,0.00015,2]
[421585771,1777929037000,-380.52932165,0.00015,2]
[421585770,1777929037000,-46965.19928807,0.00015,2]
[421585774,1777929037000,-791.79795228,0.00015,2]
[421585775,1777929037000,-1401.9124575,0.00015,2]
[421585776,1777929037000,-469.10245822,0.00015,2]
[421585773,1777929037000,-865.69,0.00015,2]
[421585772,1777929037000,-1000.18778537,0.00015,2]
[421585777,1777929038000,-11991.61838017,0.00015,2]
[421585784,1777929040000,-400.38283808,0.00015,2]
[421585783,1777929040000,-652.08483977,0.00015,2]
[421585806,1777929042000,-500.0,0.00014999,2]
[421585807,1777929042000,-108.0,0.00015,2]
[421585810,1777929045000,-4015.11574877,0.00015,2]
[421585813,1777929245000,159.54,9.503e-05,2]
[421585814,1777929245000,159.54,0.00010558,2]
[421585816,1777929348000,242.86,0.00027562,120]
[421585815,1777929348000,242.86,0.00025265,120]
[421585819,1777929502000,19633.0,0.00030137,120]
[421585824,1777930008000,-60.97843141,0.00011614,2]
[421585823,1777930008000,-159.54,0.00011614,2]
[421585825,1777930041000,154.58,7.008e-05,2]
[421585842,1777930077000,-1500.0,0.000145,5]
[421585841,1777930077000,-200.0,0.00014427,2]
[421585839,1777930077000,-166.66,0.00014042,2]
[421585843,1777930077000,-3000.0,0.000146,5]
[421585840,1777930077000,-166.66,0.00014386,2]
[421585837,1777930077000,-250.0,0.00014,2]
[421585838,1777930077000,-154.58,0.00014017,2]
[421585836,1777930077000,-159.54,0.00013726,2]
[421585831,1777930077000,-250.0,0.00012776,2]
[421585833,1777930077000,-5157.26999034,0.00013,2]
[421585832,1777930077000,-199.74,0.0001298,2]
[421585830,1777930077000,-553.71320465,0.00012776,2]
[421585828,1777930077000,-250.0,0.00012167,2]
[421585827,1777930077000,-175.84298729,0.00011614,2]
[421585829,1777930077000,-159.54,0.0001267,2]
[421585826,1777930077000,-250.0,0.00011614,2]
[421585845,1777930077000,-4500.0,0.000147,5]
[421585834,1777930077000,-197.68,0.00013677,2]
[421585844,1777930077000,-250.0,0.00014652,2]
[421585835,1777930077000,-166.66,0.00013699,2]
[421585847,1777930077000,-159.54,0.00014782,2]
[421585863,1777930077000,-500.0,0.00014999,2]
[421585864,1777930077000,-500.0,0.00014999,2]
[421585862,1777930077000,-563.26475259,0.00014999,2]
[421585861,1777930077000,-4444.9182787,0.00014907,2]
[421585858,1777930077000,-165.07,0.00014887,2]
[421585860,1777930077000,-150.0,0.00014901,2]
[421585859,1777930077000,-7500.0,0.000149,5]
[421585857,1777930077000,-9323.8335336,0.00014882,2]
[421585854,1777930077000,-4792.1316289,0.00014882,2]
[421585846,1777930077000,-166.66,0.00014729,2]
[421585855,1777930077000,-7262.1461813,0.00014882,2]
[421585848,1777930077000,-6000.0,0.000148,5]
[421585850,1777930077000,-150.0,0.00014881,2]
[421585849,1777930077000,-1200.0,0.00014881,2]
[421585856,1777930077000,-1267.1525911,0.00014882,2]
[421585851,1777930077000,-2431.5510777,0.00014882,2]
[421585853,1777930077000,-2293.1038722,0.00014882,2]
[421585865,1777930077000,-500.0,0.00014999,2]
[421585852,1777930077000,-40344.3382102,0.00014882,2]
[421585883,1777930078000,-500.0,0.00014999,2]
[421585881,1777930078000,-500.0,0.00014999,2]
[421585882,1777930078000,-500.0,0.00014999,2]
[421585880,1777930078000,-500.0,0.00014999,2]
[421585879,1777930078000,-500.0,0.00014999,2]
[421585878,1777930078000,-500.0,0.00014999,2]
[421585877,1777930078000,-500.0,0.00014999,2]
[421585875,1777930078000,-500.0,0.00014999,2]
[421585874,1777930078000,-500.0,0.00014999,2]
[421585873,1777930078000,-500.0,0.00014999,2]
[421585872,1777930078000,-500.0,0.00014999,2]
[421585884,1777930078000,-500.0,0.00014999,2]
[421585869,1777930078000,-150.0,0.00014999,2]
[421585871,1777930078000,-500.0,0.00014999,2]
[421585866,1777930078000,-500.0,0.00014999,2]
[421585867,1777930078000,-500.0,0.00014999,2]
[421585868,1777930078000,-500.0,0.00014999,2]
[421585876,1777930078000,-500.0,0.00014999,2]
[421585870,1777930078000,-500.0,0.00014999,2]
[421585885,1777930078000,-500.0,0.00014999,2]
[421585887,1777930078000,-500.0,0.00014999,2]
[421585904,1777930078000,-500.0,0.00014999,2]
[421585906,1777930078000,-500.0,0.00014999,2]
[421585905,1777930078000,-500.0,0.00014999,2]
[421585903,1777930078000,-500.0,0.00014999,2]
[421585886,1777930078000,-500.0,0.00014999,2]
[421585900,1777930078000,-500.0,0.00014999,2]
[421585901,1777930078000,-500.0,0.00014999,2]
[421585899,1777930078000,-635.37437393,0.00014999,2]
[421585897,1777930078000,-500.0,0.00014999,2]
[421585902,1777930078000,-500.0,0.00014999,2]
[421585896,1777930078000,-500.0,0.00014999,2]
[421585898,1777930078000,-500.0,0.00014999,2]
[421585889,1777930078000,-500.0,0.00014999,2]
[421585888,1777930078000,-500.0,0.00014999,2]
[421585892,1777930078000,-500.0,0.00014999,2]
[421585893,1777930078000,-500.0,0.00014999,2]
[421585891,1777930078000,-500.0,0.00014999,2]
[421585894,1777930078000,-500.0,0.00014999,2]
[421585895,1777930078000,-500.0,0.00014999,2]
[421585890,1777930078000,-500.0,0.00014999,2]
[421585907,1777930079000,-500.0,0.00014999,2]
[421585915,1777930079000,-344.4031742,0.00014999,2]
[421585914,1777930079000,-500.0,0.00014999,2]
[421585913,1777930079000,-500.0,0.00014999,2]
[421585911,1777930079000,-500.0,0.00014999,2]
[421585912,1777930079000,-500.0,0.00014999,2]
[421585910,1777930079000,-500.0,0.00014999,2]
[421585909,1777930079000,-500.0,0.00014999,2]
[421585908,1777930079000,-500.0,0.00014999,2]
[421585916,1777930079000,-167948.6261433,0.00015,2]
[421585917,1777930160000,422.497411,0.00021983,120]
[421585918,1777930170000,586.040559,0.00021983,120]
[421585919,1777930202000,185.229574,0.00022016,120]
[421585920,1777930214000,438.561426,0.00021983,120]
[421585921,1777930218000,283.737865,0.00021983,120]
[421585938,1777930231000,-46.50016843,0.00011,2]
[421585939,1777930231000,-340.65365423,0.0001199,2]
[421585937,1777930231000,-1768.47510956,0.00011,2]
[421585940,1777930232000,-500.0,0.00011999,2]
[421585941,1777930232000,-236.84371452,0.00011999,2]
[421585943,1777930232000,-193.37570639,0.00011999,2]
[421585944,1777930232000,-593.83228589,0.00011999,2]
[421585945,1777930232000,-270.9901179,0.00011999,2]
[421585951,1777930232000,-83279.70509851,0.00012,2]
[421585947,1777930232000,-2517086.11511126,0.00012,2]
[421585942,1777930232000,-186.92820836,0.00011999,2]
[421585955,1777930232000,-1254.41808677,0.00012,2]
[421585948,1777930232000,-199213.26833396,0.00012,2]
[421585953,1777930232000,-26716.77091581,0.00012,2]
[421585946,1777930232000,-500.0,0.00011999,2]
[421585995,1777930237000,-1720.99601078,0.00012,2]
[421585996,1777930237000,-2050.45774159,0.00012,2]
[421585994,1777930237000,-428.54624763,0.00011999,2]
[421585998,1777930238000,-380.52932165,0.00012,2]
[421585997,1777930238000,-46965.19928807,0.00012,2]
[421586017,1777930240000,-323.43030766,0.00012,2]
[421586018,1777930240000,-578.02784794,0.00012,2]
[421586016,1777930240000,-902.65302674,0.00012,2]
[421586015,1777930240000,-4003.35,0.00012,2]
[421586041,1777930243000,-263.53743739,0.00013699,2]
[421586039,1777930243000,-500.0,0.00013699,2]
[421586043,1777930243000,-2944.80714542,0.00013899,2]
[421586044,1777930243000,-1200.0,0.00013999,2]
[421586037,1777930243000,-500.0,0.00013699,2]
[421586036,1777930243000,-500.0,0.00013699,2]
[421586046,1777930243000,-208.40443354,0.000149,2]
[421586035,1777930243000,-500.0,0.00013699,2]
[421586033,1777930243000,-326.16100896,0.00013446,2]
[421586034,1777930243000,-500.0,0.00013699,2]
[421586032,1777930243000,-138303.44834762,0.00012,2]
[421586045,1777930243000,-8927.14698573,0.00014,2]
[421586054,1777930243000,-11339.9909308,0.00015,2]
[421586053,1777930243000,-150.0,0.00014999,2]
[421586055,1777930243000,-200.0,0.00015,2]
[421586052,1777930243000,-340.65365423,0.0001499,2]
[421586049,1777930243000,-150.0,0.00014903,2]
[421586047,1777930243000,-6786.51133819,0.000149,2]
[421586048,1777930243000,-2271.46316017,0.000149,2]
[421586050,1777930243000,-1889.15941613,0.00014904,2]
[421586057,1777930243000,-103.04878644,0.00015,2]
[421586056,1777930243000,-1166138.77699454,0.00015,2]
[421586058,1777930243000,-290.0373289,0.00015,2]
[421586059,1777930243000,-313775.72606404,0.00015,2]
[421586051,1777930243000,-340.65365423,0.0001499,2]
[421586063,1777930246000,-1325.29624757,0.00015,2]
[421586064,1777930246000,-4192.81052465,0.00015,2]
[421586065,1777930246000,-3000.00000576,0.00015,2]
[421586066,1777930246000,-481284.912617,0.00015,2]
[421586070,1777930265000,345787.02867722,0.000107,2]
[421586078,1777930289000,-172.663,0.000147,2]
[421586080,1777930289000,-12996.72566181,0.000149,2]
[421586079,1777930289000,-300.0,0.00014899,2]
[421586077,1777930289000,-1382.854,0.000147,2]
[421586076,1777930289000,-331.0,0.00013699,2]
[421586073,1777930289000,-195.75,0.00013699,2]
[421586075,1777930289000,-815.67,0.00013699,2]
[421586074,1777930289000,-163.13,0.00013699,2]
[421586082,1777930290000,-500.0,0.00014999,2]
[421586081,1777930290000,-290.40773021,0.00014908,2]
[421586085,1777930290000,-500.0,0.00014999,2]
[421586083,1777930290000,-500.0,0.00014999,2]
[421586086,1777930290000,-500.0,0.00014999,2]
[421586088,1777930290000,-341.11629806,0.00014999,2]
[421586087,1777930290000,-500.0,0.00014999,2]
[421586089,1777930290000,-80010.68330992,0.00015,2]
[421586084,1777930290000,-500.0,0.00014999,2]
[421586091,1777930469000,368.425277,0.00021926,120]
[421586096,1777930931000,175.64,8.794e-05,2]
[421586101,1777931155000,2911.0,0.00030137,120]
[421586105,1777931431000,-380.0,0.00013746,2]
[421586106,1777931431000,-550.63788,0.00013746,2]
[421586107,1777931432000,-484.5,0.00013746,2]
[421586119,1777931438000,-2922.66212,0.00013746,2]
[421586120,1777931438000,-201.08904919,0.00013971,2]
[421586233,1777931443000,-200.0,0.0001488,2]
[421586240,1777931443000,-643.63655734,0.00014907,2]
[421586232,1777931443000,-200.0,0.00014879,2]
[421586237,1777931443000,-6808.53998752,0.000149,2]
[421586234,1777931443000,-150.0,0.00014899,2]
[421586236,1777931443000,-172.663,0.000149,2]
[421586241,1777931443000,-2576.70625219,0.00014907,2]
[421586239,1777931443000,-4000.42645083,0.000149,2]
[421586238,1777931443000,-1100.0,0.000149,5]
[421586242,1777931443000,-166.66,0.00014967,2]
[421586254,1777931443000,-527.97037077,0.00014999,2]
[421586245,1777931443000,-500.0,0.00014999,2]
[421586252,1777931443000,-527.97037077,0.00014999,2]
[421586253,1777931443000,-527.97037077,0.00014999,2]
[421586256,1777931443000,-527.97037077,0.00014999,2]
[421586235,1777931443000,-1106.283,0.000149,2]
[421586255,1777931443000,-527.97037077,0.00014999,2]
[421586247,1777931443000,-500.0,0.00014999,2]
[421586250,1777931443000,-600.0,0.00014999,2]
[421586246,1777931443000,-500.0,0.00014999,2]
[421586244,1777931443000,-500.0,0.00014999,2]
[421586243,1777931443000,-502.29865957,0.00014999,2]
[421586228,1777931443000,-1064.81482,0.0001485,2]
[421586227,1777931443000,-1064.81482,0.0001485,2]
[421586209,1777931443000,-541.89302806,0.00013971,2]
[421586211,1777931443000,-36.41724083,0.00013972,2]
[421586210,1777931443000,-457.01792275,0.00013971,2]
[421586212,1777931443000,-5218.63275917,0.00013972,2]
[421586214,1777931443000,-2000.0,0.00013994,2]
[421586217,1777931443000,-166.66,0.00014362,2]
[421586213,1777931443000,-300.0,0.00013993,2]
[421586215,1777931443000,-2500.0,0.000141,2]
[421586218,1777931443000,-180.42,0.00014458,2]
[421586216,1777931443000,-500.0,0.00014146,2]
[421586219,1777931443000,-166.14,0.00014523,2]
[421586220,1777931443000,-166.66,0.00014665,2]
[421586223,1777931443000,-16582.168512,0.00014798,2]
[421586224,1777931443000,-8649.9457499,0.00014798,2]
[421586222,1777931443000,-300.0,0.000147,5]
[421586225,1777931443000,-700.0,0.000148,5]
[421586226,1777931443000,-1064.81481,0.0001485,2]
[421586249,1777931443000,-500.0,0.00014999,2]
[421586231,1777931443000,-1064.81481,0.0001485,2]
[421586230,1777931443000,-1064.81482,0.0001485,2]
[421586221,1777931443000,-223.36,0.00014684,2]
[421586229,1777931443000,-1064.81481,0.0001485,2]
[421586248,1777931443000,-500.0,0.00014999,2]
[421586257,1777931443000,-527.97037077,0.00014999,2]
[421586270,1777931443000,-527.97037077,0.00014999,2]
[421586301,1777931443000,-527.97037077,0.00014999,2]
[421586307,1777931443000,-527.97037077,0.00014999,2]
[421586309,1777931443000,-527.97037077,0.00014999,2]
[421586308,1777931443000,-527.97037077,0.00014999,2]
[421586306,1777931443000,-527.97037077,0.00014999,2]
[421586303,1777931443000,-527.97037077,0.00014999,2]
[421586304,1777931443000,-527.97037077,0.00014999,2]
[421586302,1777931443000,-527.97037077,0.00014999,2]
[421586251,1777931443000,-539.69308253,0.00014999,2]
[421586310,1777931443000,-527.97037077,0.00014999,2]
[421586312,1777931443000,-527.97037077,0.00014999,2]
[421586320,1777931443000,-527.97037077,0.00014999,2]
[421586321,1777931443000,-527.97037077,0.00014999,2]
[421586311,1777931443000,-527.97037077,0.00014999,2]
[421586315,1777931443000,-527.97037077,0.00014999,2]
[421586313,1777931443000,-527.97037077,0.00014999,2]
[421586314,1777931443000,-527.97037077,0.00014999,2]
[421586317,1777931443000,-527.97037077,0.00014999,2]
[421586316,1777931443000,-527.97037077,0.00014999,2]
[421586318,1777931443000,-527.97037077,0.00014999,2]
[421586319,1777931443000,-527.97037077,0.00014999,2]
[421586300,1777931443000,-527.97037077,0.00014999,2]
[421586298,1777931443000,-527.97037077,0.00014999,2]
[421586305,1777931443000,-527.97037077,0.00014999,2]
[421586295,1777931443000,-527.97037077,0.00014999,2]
[421586299,1777931443000,-527.97037077,0.00014999,2]
[421586269,1777931443000,-527.97037077,0.00014999,2]
[421586272,1777931443000,-527.97037077,0.00014999,2]
[421586276,1777931443000,-527.97037077,0.00014999,2]
[421586259,1777931443000,-527.97037077,0.00014999,2]
[421586265,1777931443000,-527.97037077,0.00014999,2]
[421586274,1777931443000,-527.97037077,0.00014999,2]
[421586261,1777931443000,-527.97037077,0.00014999,2]
[421586263,1777931443000,-527.97037077,0.00014999,2]
[421586278,1777931443000,-527.97037077,0.00014999,2]
[421586280,1777931443000,-527.97037077,0.00014999,2]
[421586267,1777931443000,-527.97037077,0.00014999,2]
[421586289,1777931443000,-527.97037077,0.00014999,2]
[421586281,1777931443000,-527.97037077,0.00014999,2]
[421586294,1777931443000,-527.97037077,0.00014999,2]
[421586292,1777931443000,-527.97037077,0.00014999,2]
[421586287,1777931443000,-527.97037077,0.00014999,2]
[421586283,1777931443000,-527.97037077,0.00014999,2]
[421586297,1777931443000,-527.97037077,0.00014999,2]
[421586291,1777931443000,-527.97037077,0.00014999,2]
[421586290,1777931443000,-527.97037077,0.00014999,2]
[421586285,1777931443000,-527.97037077,0.00014999,2]
[421586296,1777931443000,-527.97037077,0.00014999,2]
[421586335,1777931444000,-517.10039254,0.00014999,2]
[421586340,1777931444000,-517.10039254,0.00014999,2]
[421586347,1777931444000,-517.10039254,0.00014999,2]
[421586341,1777931444000,-517.10039254,0.00014999,2]
[421586344,1777931444000,-517.10039254,0.00014999,2]
[421586342,1777931444000,-517.10039254,0.00014999,2]
[421586343,1777931444000,-517.10039254,0.00014999,2]
[421586345,1777931444000,-517.10039254,0.00014999,2]
[421586336,1777931444000,-517.10039254,0.00014999,2]
[421586328,1777931444000,-517.10039254,0.00014999,2]
[421586322,1777931444000,-527.97037077,0.00014999,2]
[421586327,1777931444000,-517.10039254,0.00014999,2]
[421586333,1777931444000,-517.10039254,0.00014999,2]
[421586334,1777931444000,-517.10039254,0.00014999,2]
[421586330,1777931444000,-517.10039254,0.00014999,2]
[421586332,1777931444000,-517.10039254,0.00014999,2]
[421586326,1777931444000,-517.10039254,0.00014999,2]
[421586325,1777931444000,-517.10039254,0.00014999,2]
[421586323,1777931444000,-517.10039254,0.00014999,2]
[421586331,1777931444000,-517.10039254,0.00014999,2]
[421586324,1777931444000,-517.10039254,0.00014999,2]
[421586329,1777931444000,-517.10039254,0.00014999,2]
[421586339,1777931444000,-517.10039254,0.00014999,2]
[421586346,1777931444000,-517.10039254,0.00014999,2]
[421586338,1777931444000,-517.10039254,0.00014999,2]
[421586337,1777931444000,-517.10039254,0.00014999,2]
[421586370,1777931444000,-423307.03025715,0.00015,2]
[421586364,1777931444000,-500.0,0.00014999,2]
[421586367,1777931444000,-866.0,0.00015,5]
[421586368,1777931444000,-865.0,0.00015,5]
[421586366,1777931444000,-398.85,0.00014999,2]
[421586365,1777931444000,-500.0,0.00014999,2]
[421586363,1777931444000,-500.0,0.00014999,2]
[421586362,1777931444000,-500.0,0.00014999,2]
[421586361,1777931444000,-500.0,0.00014999,2]
[421586357,1777931444000,-517.10039253,0.00014999,2]
[421586369,1777931444000,-150.0,0.00015,2]
[421586353,1777931444000,-517.10039256,0.00014999,2]
[421586349,1777931444000,-517.10039254,0.00014999,2]
[421586358,1777931444000,-500.0,0.00014999,2]
[421586360,1777931444000,-500.0,0.00014999,2]
[421586350,1777931444000,-165.79060016,0.00014999,2]
[421586348,1777931444000,-517.10039254,0.00014999,2]
[421586359,1777931444000,-408.71462163,0.00014999,2]
[421586354,1777931444000,-517.10039256,0.00014999,2]
[421586356,1777931444000,-517.10039256,0.00014999,2]
[421586355,1777931444000,-517.10039256,0.00014999,2]
[421586352,1777931444000,-517.10039256,0.00014999,2]
[421586351,1777931444000,-517.10039256,0.00014999,2]
[421586379,1777931866000,338.78,0.00027836,120]
[421586380,1777931960000,-166.66,0.00013699,2]
[421586386,1777931961000,-178.68,0.00014543,2]
[421586382,1777931961000,-166.66,0.00014163,2]
[421586381,1777931961000,-250.0,0.00014,2]
[421586383,1777931961000,-178.68,0.00014188,2]
[421586384,1777931961000,-250.0,0.0001426,2]
[421586385,1777931961000,-338.78,0.00014521,2]
[421586388,1777931961000,-472.51437042,0.00014582,2]
[421586387,1777931961000,-200.0,0.0001455,2]
[421586389,1777931961000,-200.0,0.00014613,2]
[421586390,1777931961000,-166.66,0.00014628,2]
[421586397,1777931961000,-5345.05860313,0.000149,2]
[421586396,1777931961000,-150.0,0.00014899,2]
[421586394,1777931961000,-178.68,0.00014898,2]
[421586398,1777931961000,-1749788.60102645,0.000149,2]
[421586392,1777931961000,-345.0,0.000147,2]
[421586393,1777931961000,-200.0,0.0001488,2]
[421586391,1777931961000,-885.026,0.000147,2]
[421586395,1777931961000,-1200.0,0.00014899,2]
[421586403,1777932047000,640.0,0.00025166,120]
[421586407,1777932115000,622.23,8.52e-05,2]
[421586406,1777932115000,622.23,8.132e-05,2]
[421586405,1777932115000,622.23,7.745e-05,2]
[421586404,1777932115000,622.23,7.358e-05,2]
[421586408,1777932116000,622.23,8.907e-05,2]
[421586411,1777932116000,622.23,0.00010069,2]
[421586410,1777932116000,622.23,9.681e-05,2]
[421586409,1777932116000,622.23,9.294e-05,2]
[421586412,1777932117000,622.23,0.00010456,2]
[421586417,1777932574000,-235.33036447,0.0001123,2]
[421586416,1777932574000,-622.23,0.00010843,2]
[421586430,1777932632000,-622.23,0.00011618,2]
[421586429,1777932632000,-386.89963553,0.0001123,2]
[421586431,1777932632000,-794.93364656,0.00011925,2]
[421586433,1777932632000,-300.0,0.00011925,2]
[421586435,1777932632000,-150.0,0.00011926,2]
[421586442,1777932632000,-301.21727862,0.00011927,2]
[421586434,1777932632000,-300.0,0.00011925,2]
[421586432,1777932632000,-405.06635344,0.00011925,2]
[421586436,1777932632000,-250.06868168,0.00011926,2]
[421586438,1777932632000,-209.0,0.00011926,2]
[421586439,1777932632000,-3091.68589504,0.00011927,2]
[421586440,1777932632000,-5000.0,0.00011927,2]
[421586441,1777932632000,-250.0,0.00011927,2]
[421586437,1777932632000,-49.93131832,0.00011926,2]
[421586445,1777932632000,-195.78929784,0.00012353,2]
[421586449,1777932632000,-622.23,0.00012392,2]
[421586444,1777932632000,-622.23,0.00012005,2]
[421586457,1777932632000,-150.0,0.00013127,2]
[421586456,1777932632000,-1680.0,0.00013118,2]
[421586455,1777932632000,-266.0,0.00013094,2]
[421586450,1777932632000,-946.4,0.00012706,2]
[421586447,1777932632000,-500.0,0.00012353,2]
[421586454,1777932632000,-420.0,0.00013092,2]
[421586446,1777932632000,-5000.0,0.00012353,2]
[421586451,1777932632000,-622.23,0.00012779,2]
[421586443,1777932632000,-250.0,0.00011927,2]
[421586453,1777932632000,-255.0,0.00013,2]
[421586448,1777932632000,-250.0,0.00012353,2]
[421586452,1777932632000,-2000.0,0.00012919,2]
[421586520,1777932633000,-500.0,0.00014051,2]
[421586510,1777932633000,-465.72395313,0.00014051,2]
[421586512,1777932633000,-500.0,0.00014051,2]
[421586514,1777932633000,-500.0,0.00014051,2]
[421586524,1777932633000,-500.0,0.00014051,2]
[421586525,1777932633000,-500.0,0.00014051,2]
[421586526,1777932633000,-500.0,0.00014051,2]
[421586527,1777932633000,-500.0,0.00014051,2]
[421586516,1777932633000,-500.0,0.00014051,2]
[421586518,1777932633000,-500.0,0.00014051,2]
[421586541,1777932633000,-500.0,0.00014051,2]
[421586522,1777932633000,-559.5280042,0.00014051,2]
[421586523,1777932633000,-500.0,0.00014051,2]
[421586532,1777932633000,-500.0,0.00014051,2]
[421586531,1777932633000,-500.0,0.00014051,2]
[421586535,1777932633000,-500.0,0.00014051,2]
[421586508,1777932633000,-1006.04721534,0.00014051,2]
[421586538,1777932633000,-500.0,0.00014051,2]
[421586537,1777932633000,-500.0,0.00014051,2]
[421586544,1777932633000,-500.0,0.00014051,2]
[421586542,1777932633000,-500.0,0.00014051,2]
[421586546,1777932633000,-500.0,0.00014051,2]